bitfinex/quotes_SOLUSD_20241220
["timestamp","ask_amount","ask_price","bid_price","bid_amount"]
[1734695526731,12.6881,176.23,175.8,7.6166]
[1734695526931,44.81203569,176.1,175.98,44.81203569]
[1734695527149,44.81203569,176.14,176.04,44.81203569]
[1734695527350,74.81203569,176.14,175.93,0.85219794]
[1734695527654,74.81203569,176.08,175.95,44.81203569]
[1734695527852,44.81203569,176.13,175.95,44.81203569]
[1734695527853,44.81203569,176.07,175.95,44.81203569]
[1734695528060,30.0,176.12,176.01,44.81203569]
[1734695528262,44.81203569,176.22,176.05,44.81203569]
[1734695528263,44.81203569,176.17,176.05,44.81203569]
[1734695528567,44.81203569,176.17,176.04,23.776884]
[1734695528568,44.81203569,176.12,176.02,23.776884]
[1734695528775,2.5072,176.31,176.02,23.776884]
[1734695528776,44.81203569,176.15,176.04,23.776884]
[1734695529057,44.81203569,176.06,175.89,20.0]
[1734695529260,44.81203569,176.13,175.88,44.81203569]
[1734695529261,44.81203569,176.0,175.88,44.81203569]
[1734695529435,30.0,175.99,175.82,12.1245]
[1734695529642,44.81203569,176.0,175.88,44.81203569]
[1734695529945,44.81203569,175.98,175.88,44.81203569]
[1734695530258,44.81203569,176.04,175.8,7.6166]
[1734695530259,44.81203569,175.92,175.8,7.6166]
[1734695530571,44.81203569,175.95,175.77,44.81203569]
[1734695530572,30.0,175.89,175.77,44.81203569]
[1734695530736,44.81203569,175.92,175.79,44.81203569]
[1734695531066,22.775852,176.02,175.87,44.81203569]
[1734695531250,44.81203569,175.99,175.87,44.81203569]
[1734695531455,44.81203569,175.97,175.85,44.81203569]
[1734695531654,44.81203569,175.95,175.83,44.81203569]
[1734695531957,44.81203569,176.04,175.79,44.81203569]
[1734695531958,44.81203569,175.91,175.79,44.81203569]
[1734695532155,44.81203569,175.96,175.85,44.81203569]
[1734695532356,44.81203569,175.94,175.83,44.81203569]
[1734695532564,44.81203569,175.96,175.85,44.81203569]
[1734695532742,30.0,176.1,175.95,44.81203569]
[1734695533070,44.81203569,176.13,176.03,44.81203569]
[1734695533269,30.0,176.19,176.06,44.81203569]
[1734695533437,44.81203569,176.25,176.15,44.81203569]
[1734695533637,44.81203569,176.25,176.05,12.2319]
[1734695533638,44.81203569,176.27,176.08,20.0]
[1734695533855,44.81203569,176.29,176.17,44.81203569]
[1734695534042,44.81203569,176.29,176.19,44.81203569]
[1734695534243,44.81203569,176.33,176.22,44.81203569]
[1734695534571,44.81203569,176.27,176.16,44.81203569]
[1734695534883,44.81203569,176.28,176.18,44.81203569]
[1734695535078,30.0,176.36,176.2,44.81203569]
[1734695535287,44.81203569,176.34,176.25,44.81203569]
[1734695535571,44.81203569,176.36,176.26,0.12549]
[1734695535777,44.81203569,176.3,176.21,44.81203569]
[1734695535975,44.81203569,176.32,176.21,44.81203569]
[1734695536141,44.81203569,176.28,176.09,28.3945]
[1734695536342,44.81203569,176.23,176.12,44.81203569]
[1734695536551,44.81203569,176.19,176.08,44.81203569]
[1734695536845,44.81203569,176.15,176.04,44.81203569]
[1734695537176,44.81203569,176.14,176.04,44.81203569]
[1734695537377,44.81203569,176.18,176.08,44.81203569]
[1734695538887,44.81203569,176.32,176.2,64.81203569]
[1734695539055,44.81203569,176.23,176.12,44.81203569]
[1734695539362,44.81203569,176.15,176.04,44.81203569]
[1734695539764,44.81203569,176.11,176.03,8.1928]
[1734695539944,44.81203569,176.09,175.98,44.81203569]
[1734695540144,30.0,176.13,176.02,44.81203569]
[1734695540145,44.81203569,176.13,176.02,44.81203569]
[1734695540766,30.0,176.35,176.1,44.81203569]
[1734695540944,44.81203569,176.24,176.13,8.13719]
[1734695541144,44.81203569,176.31,176.13,8.0117]
[1734695541388,44.81203569,176.2,176.13,8.0117]
[1734695541565,44.81203569,176.24,176.13,8.0117]
[1734695541765,44.81203569,176.22,176.13,8.0117]
[1734695542198,44.81203569,176.14,176.04,44.81203569]
[1734695542364,44.81203569,176.14,176.01,8.0813]
[1734695542365,44.81203569,176.1,176.01,8.0813]
[1734695542566,44.81203569,176.06,176.01,8.0813]
[1734695542763,44.81203569,176.04,175.94,44.81203569]
[1734695542984,44.81203569,176.1,175.95,44.81203569]
[1734695543190,44.81203569,176.14,176.04,44.81203569]
[1734695543371,44.81203569,176.16,176.04,44.81203569]
[1734695543573,44.81203569,176.19,176.08,44.81203569]
[1734695543892,44.81203569,176.21,176.1,44.81203569]
[1734695544072,44.81203569,176.17,176.06,44.81203569]
[1734695544265,44.81203569,176.31,176.11,20.0]
[1734695544266,44.81203569,176.21,176.11,20.0]
[1734695544470,30.0,176.35,176.21,20.0]
[1734695544682,44.81203569,176.35,176.24,44.81203569]
[1734695544885,44.81203569,176.39,176.31,20.0]
[1734695545065,0.9905591,176.49,176.37,44.81203569]
[1734695545266,44.81203569,176.47,176.37,44.81203569]
[1734695545477,44.81203569,176.47,176.31,7.6804]
[1734695545478,44.81203569,176.4,176.31,7.6804]
[1734695545673,44.81203569,176.38,176.31,7.6804]
[1734695545872,44.81203569,176.36,176.25,44.81203569]
[1734695546277,44.81203569,176.34,176.23,44.81203569]
[1734695546477,30.0,176.35,176.21,7.6804]
[1734695546689,44.81203569,176.36,176.25,44.81203569]
[1734695547077,44.81203569,176.34,176.23,44.81203569]
[1734695547382,44.81203569,176.4,176.29,44.81203569]
[1734695547577,44.81203569,176.38,176.27,44.81203569]
[1734695547888,44.81203569,176.48,176.38,20.0]
[1734695548095,0.9905591,176.49,176.45,20.0]
[1734695548474,0.9905591,176.49,176.48,20.0]
[1734695548673,0.9905591,176.49,176.48,44.81203569]
[1734695548869,0.9905591,176.49,176.42,44.81203569]
[1734695549076,0.9905591,176.49,176.4,52.41613569]
[1734695549281,44.81203569,176.47,176.4,7.6041]
[1734695549478,44.81203569,176.45,176.34,44.81203569]
[1734695549679,44.81203569,176.47,176.36,44.81203569]
[1734695549899,44.81203569,176.46,176.33,44.81203569]
[1734695550273,0.9905591,176.49,176.35,44.81203569]
[1734695550580,44.81203569,176.48,176.37,44.81203569]
[1734695550779,44.81203569,176.48,176.32,0.85041071]
[1734695550995,0.9905591,176.49,176.32,0.85041071]
[1734695550996,0.9905591,176.49,176.39,44.81203569]
[1734695551178,0.9905591,176.49,176.41,44.81203569]
[1734695551375,44.81203569,176.58,176.47,44.81203569]
[1734695551588,44.81203569,176.6,176.49,44.81203569]
[1734695551998,44.81203569,176.58,176.47,44.81203569]
[1734695552500,22.691108,176.68,176.41,0.97541132]
[1734695552501,44.81203569,176.56,176.45,44.81203569]
[1734695552816,44.81203569,176.48,176.37,44.81203569]
[1734695552976,44.81203569,176.48,176.31,44.81203569]
[1734695552977,44.81203569,176.46,176.35,44.81203569]
[1734695553183,44.81203569,176.48,176.37,44.81203569]
[1734695553500,44.81203569,176.58,176.3,7.9205]
[1734695553501,44.81203569,176.38,176.3,7.9205]
[1734695553794,41.91001391,176.52,176.09,284.29558352]
[1734695553795,20.0,176.28,176.09,12.1356]
[1734695553979,44.81203569,176.18,176.08,8.2176]
[1734695554183,44.81203569,176.16,176.04,44.81203569]
[1734695554500,44.81203569,176.25,176.13,44.81203569]
[1734695554885,44.81203569,176.22,176.11,44.81203569]
[1734695555090,44.81203569,176.24,176.13,44.81203569]
[1734695555295,44.81203569,176.3,176.19,44.81203569]
[1734695555599,44.81203569,176.26,176.15,44.81203569]
[1734695555801,44.81203569,176.34,176.23,44.81203569]
[1734695555989,287.79298352,176.53,176.27,44.81203569]
[1734695555990,44.81203569,176.37,176.27,44.81203569]
[1734695556185,44.81203569,176.29,176.18,8.2176]
[1734695556393,30.0,176.44,176.18,8.2176]
[1734695556579,44.81203569,176.33,176.23,44.81203569]
[1734695556780,44.81203569,176.29,176.18,53.02963569]
[1734695557596,44.81203569,176.31,176.2,44.81203569]
[1734695557799,30.0,176.55,176.31,0.12549]
[1734695557991,44.81203569,176.54,176.43,44.81203569]
[1734695558301,44.81203569,176.56,176.45,44.81203569]
[1734695558498,42.98647425,176.64,176.47,44.81203569]
[1734695558499,44.81203569,176.58,176.47,44.81203569]
[1734695558706,30.0,176.59,176.42,20.0]
[1734695558885,44.81203569,176.51,176.4,67.50957469]
[1734695559080,30.0,176.56,176.39,21.7163]
[1734695559081,44.81203569,176.53,176.42,44.81203569]
[1734695559283,42.98627425,176.64,176.43,20.0]
[1734695559598,44.81203569,176.57,176.46,44.81203569]
[1734695559815,44.81203569,176.63,176.5,44.81203569]
[1734695560124,22.683678,176.73,176.59,44.81203569]
[1734695560280,0.9905591,176.75,176.64,44.81203569]
[1734695560481,0.9905591,176.75,176.69,20.0]
[1734695560694,44.81203569,176.71,176.51,20.0]
[1734695560899,44.81203569,176.69,176.51,0.84940187]
[1734695561105,44.81203569,176.69,176.59,20.0]
[1734695561397,14.145,176.74,176.51,44.81203569]
[1734695561598,44.81203569,176.66,176.55,44.81203569]
[1734695561784,44.81203569,176.66,176.58,20.0]
[1734695561990,44.81203569,176.68,176.57,44.81203569]
[1734695562187,44.81203569,176.66,176.58,20.0]
[1734695562391,30.9905591,176.75,176.57,44.81203569]
[1734695562594,44.81203569,176.69,176.57,44.81203569]
[1734695562789,44.81203569,176.67,176.55,44.81203569]
[1734695563001,44.81203569,176.65,176.51,14.1635]
[1734695563199,44.81203569,176.64,176.54,44.81203569]
[1734695563505,44.81203569,176.62,176.51,44.81203569]
[1734695564005,44.81203569,176.62,176.52,0.12549]
[1734695564210,44.81203569,176.62,176.49,44.81203569]
[1734695564399,30.0,176.72,176.55,44.81203569]
[1734695564594,44.81203569,176.66,176.55,44.81203569]
[1734695564786,28.1195591,176.75,176.53,44.81203569]
[1734695564787,44.81203569,176.64,176.53,44.81203569]
[1734695565002,44.81203569,176.66,176.57,44.81203569]
[1734695565214,44.81203569,176.72,176.62,0.12549]
[1734695565418,44.81203569,176.74,176.65,44.81203569]
[1734695565638,0.9905591,176.75,176.66,20.0]
[1734695565983,0.9905591,176.75,176.67,44.81203569]
[1734695566205,44.81203569,176.86,176.74,44.81203569]
[1734695566719,44.81203569,176.82,176.72,44.81203569]
[1734695567087,44.81203569,176.82,176.7,44.81203569]
[1734695567789,44.81203569,176.94,176.68,26.4191]
[1734695567790,44.81203569,176.8,176.68,71.23113569]
[1734695568091,44.81203569,176.78,176.68,44.81203569]
[1734695568712,44.81203569,176.85,176.65,44.81203569]
[1734695568713,44.81203569,176.76,176.65,44.81203569]
[1734695568912,30.0,176.75,176.59,44.81203569]
[1734695569121,44.81203569,176.71,176.59,44.81203569]
[1734695569304,44.81203569,176.7,176.57,8.2448]
[1734695569490,44.81203569,176.62,176.49,0.84927945]
[1734695569696,44.81203569,176.6,176.49,44.81203569]
[1734695570294,50.0,176.72,176.56,44.81203569]
[1734695570521,44.81203569,176.67,176.56,44.81203569]
[1734695571029,44.81203569,176.69,176.58,44.81203569]
[1734695571235,44.81203569,176.75,176.64,44.81203569]
[1734695571806,44.81203569,176.78,176.67,44.81203569]
[1734695572023,57.21133569,176.85,176.69,44.81203569]
[1734695572024,44.81203569,176.8,176.69,44.81203569]
[1734695572192,44.81203569,176.84,176.74,44.81203569]
[1734695572529,44.81203569,176.86,176.71,0.12549]
[1734695572691,44.81203569,176.86,176.7,20.84854145]
[1734695572896,44.81203569,176.84,176.74,44.81203569]
[1734695573403,45.27668989,176.88,176.78,44.81203569]
[1734695573618,0.4646542,176.88,176.78,44.81203569]
[1734695573792,0.4646542,176.88,176.8,44.81203569]
[1734695573983,0.4646542,176.88,176.78,44.81203569]
[1734695574187,0.4646542,176.88,176.8,44.81203569]
[1734695574387,45.27668989,176.88,176.78,44.81203569]
[1734695574800,44.81203569,176.86,176.74,44.81203569]
[1734695575321,44.81203569,176.82,176.72,44.81203569]
[1734695575524,44.81203569,176.77,176.66,53.05683569]
[1734695575823,44.81203569,176.75,176.64,44.81203569]
[1734695576189,44.81203569,176.79,176.68,44.81203569]
[1734695576515,44.81203569,176.81,176.7,44.81203569]
[1734695576823,44.81203569,176.79,176.68,44.81203569]
[1734695577318,44.81203569,176.75,176.66,44.81203569]
[1734695577510,44.81203569,176.77,176.66,44.81203569]
[1734695577890,30.0,176.76,176.66,44.81203569]
[1734695578097,30.0,176.76,176.62,44.81203569]
[1734695578098,44.81203569,176.73,176.62,44.81203569]
[1734695578323,44.81203569,176.75,176.64,44.81203569]
[1734695578686,44.81203569,176.77,176.66,44.81203569]
[1734695579110,44.81203569,176.79,176.68,44.81203569]
[1734695579307,44.81203569,176.75,176.64,44.81203569]
[1734695579491,30.0,176.83,176.66,44.81203569]
[1734695579812,0.4646542,176.88,176.66,44.81203569]
[1734695579813,74.81203569,176.77,176.66,44.81203569]
[1734695580013,44.81203569,176.71,176.62,44.81203569]
[1734695580211,44.81203569,176.71,176.6,44.81203569]
[1734695580511,74.81203569,176.67,176.56,44.81203569]
[1734695580695,44.81203569,176.69,176.58,44.81203569]
[1734695580889,44.81203569,176.73,176.62,44.81203569]
[1734695581090,44.81203569,176.75,176.66,44.81203569]
[1734695581296,44.81203569,176.71,176.62,44.81203569]
[1734695581493,44.81203569,176.71,176.56,14.1594]
[1734695581494,44.81203569,176.71,176.6,44.81203569]
[1734695581820,0.4646542,176.88,176.7,44.81203569]
[1734695581821,44.81203569,176.81,176.7,44.81203569]
[1734695582026,44.81203569,176.85,176.75,14.1442]
[1734695582220,44.81203569,176.81,176.7,44.81203569]
[1734695582402,44.81203569,176.85,176.76,44.81203569]
[1734695582591,0.4646542,176.88,176.82,44.81203569]
[1734695582794,0.4646542,176.88,176.79,20.0]
[1734695582795,0.4646542,176.88,176.84,44.81203569]
[1734695582990,0.4646542,176.88,176.87,20.0]
[1734695583198,0.4646542,176.88,176.86,44.81203569]
[1734695583199,44.81203569,177.01,176.89,20.0]
[1734695583405,74.81203569,177.05,176.95,20.0]
[1734695583614,44.81203569,177.05,176.96,44.81203569]
[1734695583830,44.81203569,177.12,177.02,44.81203569]
[1734695584039,44.81203569,177.1,177.02,44.81203569]
[1734695584194,1.0149714,177.14,177.06,44.81203569]
[1734695584394,1.0149714,177.14,177.09,64.81203569]
[1734695584591,22.618985,177.23,177.09,64.81203569]
[1734695584592,22.618985,177.23,177.09,20.0]
[1734695584820,44.81203569,177.29,177.19,44.81203569]
[1734695585022,44.81203569,177.33,177.26,20.0]
[1734695585226,44.81203569,177.35,177.26,20.0]
[1734695585496,30.0,177.38,177.17,8.1925]
[1734695585697,44.81203569,177.3,177.17,8.1925]
[1734695585895,30.0,177.34,177.18,44.81203569]
[1734695586125,44.81203569,177.26,177.17,8.1925]
[1734695586325,44.81203569,177.22,177.12,44.81203569]
[1734695586501,44.81203569,177.18,177.08,44.81203569]
[1734695586701,30.0,177.27,177.14,44.81203569]
[1734695586917,30.0,177.34,177.19,44.81203569]
[1734695587229,44.81203569,177.32,177.21,44.81203569]
[1734695587393,44.81203569,177.38,177.27,44.81203569]
[1734695587595,1.0149714,177.4,177.33,44.81203569]
[1734695587806,1.0149714,177.4,177.39,44.81203569]
[1734695588397,1.0149714,177.4,177.38,44.81203569]
[1734695588604,1.0149714,177.4,177.39,44.81203569]
[1734695588828,30.0,177.57,177.39,44.81203569]
[1734695588829,74.81203569,177.57,177.39,44.81203569]
[1734695589036,44.81203569,177.59,177.48,44.81203569]
[1734695589204,44.81203569,177.63,177.52,44.81203569]
[1734695589402,44.81203569,177.65,177.54,44.81203569]
[1734695589706,44.81203569,177.63,177.52,44.81203569]
[1734695590216,44.81203569,177.62,177.52,44.81203569]
[1734695590421,30.0,177.65,177.56,44.81203569]
[1734695590602,30.0,177.65,177.48,44.81203569]
[1734695590603,44.81203569,177.63,177.54,44.81203569]
[1734695590916,44.81203569,177.65,177.54,44.81203569]
[1734695591226,74.81203569,177.55,177.44,44.81203569]
[1734695591403,44.81203569,177.47,177.38,44.81203569]
[1734695591601,44.81203569,177.47,177.31,14.099]
[1734695591602,44.81203569,177.51,177.4,44.81203569]
[1734695591909,44.81203569,177.51,177.31,14.94463639]
[1734695591910,30.0,177.48,177.3,57.29403569]
[1734695592206,44.81203569,177.35,177.25,44.81203569]
[1734695592406,44.81203569,177.31,177.21,44.81203569]
[1734695592599,30.0,177.36,177.18,7.6885]
[1734695592806,44.81203569,177.39,177.29,44.81203569]
[1734695593003,44.81203569,177.41,177.29,44.81203569]
[1734695593199,44.81203569,177.41,177.31,44.81203569]
[1734695593404,30.0,177.4,177.31,44.81203569]
[1734695593601,44.81203569,177.43,177.33,44.81203569]
[1734695593817,44.81203569,177.43,177.31,44.81203569]
[1734695593998,44.81203569,177.39,177.29,44.81203569]
[1734695594193,44.81203569,177.35,177.25,44.81203569]
[1734695594425,0.12549,177.26,177.07,21.7687]
[1734695594603,30.0,177.3,177.17,44.81203569]
[1734695594794,44.81203569,177.31,177.2,44.81203569]
[1734695594994,30.0,177.34,177.1,0.84641152]
[1734695595235,64.81203569,177.35,177.26,44.81203569]
[1734695595402,44.81203569,177.35,177.26,44.81203569]
[1734695595722,44.81203569,177.39,177.28,44.81203569]
[1734695595923,44.81203569,177.48,177.37,44.81203569]
[1734695596090,12.2604,177.63,177.28,7.6078]
[1734695596091,74.81203569,177.54,177.44,44.81203569]
[1734695596295,22.572516,177.61,177.36,0.12549]
[1734695596505,44.81203569,177.59,177.49,44.81203569]
[1734695596722,44.81203569,177.63,177.53,44.81203569]
[1734695596900,44.81203569,177.61,177.49,44.81203569]
[1734695597108,44.81203569,177.65,177.55,44.81203569]
[1734695597328,1.0149714,177.66,177.39,45.65709407]
[1734695597329,44.81203569,177.63,177.51,44.81203569]
[1734695597494,44.81203569,177.65,177.53,44.81203569]
[1734695597695,44.81203569,177.65,177.55,44.81203569]
[1734695597900,30.0,177.65,177.57,44.81203569]
[1734695598119,44.81203569,177.65,177.53,44.81203569]
[1734695598328,44.81203569,177.65,177.39,44.81203569]
[1734695598329,30.0,177.54,177.39,44.81203569]
[1734695598536,44.81203569,177.52,177.41,44.81203569]
[1734695598706,1.0149714,177.66,177.42,0.84519348]
[1734695599039,44.81203569,177.62,177.51,44.81203569]
[1734695599209,1.0149714,177.66,177.58,44.81203569]
[1734695599406,1.0149714,177.66,177.52,20.84468953]
[1734695599621,1.0149714,177.66,177.58,44.81203569]
[1734695599817,1.0149714,177.66,177.56,44.81203569]
[1734695600007,1.0149714,177.66,177.62,44.81203569]
[1734695600200,1.0149714,177.66,177.56,44.81203569]
[1734695600402,1.0149714,177.66,177.57,20.0]
[1734695600599,1.0149714,177.66,177.58,0.84423204]
[1734695600999,44.81203569,177.79,177.58,0.84423204]
[1734695601000,30.0,177.87,177.58,0.84423204]
[1734695601318,44.81203569,177.82,177.71,44.81203569]
[1734695601510,44.81203569,177.84,177.73,44.81203569]
[1734695601820,0.07693417,177.81,177.73,44.81203569]
[1734695602026,44.81203569,177.74,177.36,28.94366135]
[1734695602205,44.81203569,177.67,177.6,22.543033]
[1734695602404,44.81203569,177.67,177.57,44.81203569]
[1734695602602,44.81203569,177.61,177.49,7.5977]
[1734695602819,44.81203569,177.61,177.44,22.555938]
[1734695602820,0.12549,177.58,177.44,22.555938]
[1734695603019,44.81203569,177.47,177.37,52.44263569]
[1734695603321,17.34374474,177.45,177.33,44.81203569]
[1734695603525,44.81203569,177.57,177.33,44.81203569]
[1734695603526,30.0,177.58,177.33,44.81203569]
[1734695603725,44.81203569,177.53,177.41,44.81203569]
[1734695603904,44.81203569,177.47,177.35,44.81203569]
[1734695604109,44.81203569,177.47,177.37,44.81203569]
[1734695604299,44.81203569,177.47,177.35,44.81203569]
[1734695604501,44.81203569,177.45,177.33,44.81203569]
[1734695604724,44.81203569,177.43,177.33,44.81203569]
[1734695604938,44.81203569,177.49,177.37,44.81203569]
[1734695605105,44.81203569,177.49,177.39,44.81203569]
[1734695605421,44.81203569,177.59,177.48,44.81203569]
[1734695605628,44.81203569,177.51,177.31,0.84508474]
[1734695605927,44.81203569,177.59,177.49,44.81203569]
[1734695606126,44.81203569,177.61,177.51,44.81203569]
[1734695606428,44.81203569,177.61,177.44,14.0887]
[1734695606616,44.81203569,177.66,177.33,0.84491478]
[1734695606617,44.81203569,177.47,177.37,44.81203569]
[1734695606816,44.81203569,177.45,177.33,44.81203569]
[1734695607125,44.81203569,177.4,177.29,44.81203569]
[1734695607328,44.81203569,177.42,177.31,44.81203569]
[1734695607633,44.81203569,177.42,177.21,44.81203569]
[1734695607634,44.81203569,177.4,177.29,44.81203569]
[1734695607813,44.81203569,177.42,177.31,44.81203569]
[1734695608136,44.81203569,177.36,177.25,52.31833569]
[1734695608311,44.81203569,177.3,177.19,44.81203569]
[1734695608512,44.81203569,177.34,177.23,44.81203569]
[1734695608714,44.81203569,177.3,177.19,44.81203569]
[1734695608908,44.81203569,177.32,177.17,15.32729917]
[1734695609111,40.61745294,177.37,177.26,40.61745294]
[1734695609605,40.61745294,177.35,177.24,40.61745294]
[1734695610502,40.61745294,177.29,177.18,40.61745294]
[1734695610831,40.61745294,177.3,177.2,40.61745294]
[1734695611027,40.61745294,177.32,177.22,40.61745294]
[1734695611326,40.61745294,177.3,177.2,40.61745294]
[1734695611530,40.61745294,177.32,177.2,40.61745294]
[1734695611752,40.61745294,177.32,177.22,40.61745294]
[1734695612036,40.61745294,177.38,177.28,40.61745294]
[1734695612219,40.61745294,177.38,177.18,42.3297]
[1734695612220,40.61745294,177.46,177.35,40.61745294]
[1734695612532,40.61745294,177.5,177.39,40.61745294]
[1734695612907,12.5408,177.61,177.34,7.4691]
[1734695612908,40.61745294,177.54,177.43,40.61745294]
[1734695613310,40.61745294,177.52,177.41,40.61745294]
[1734695613708,40.61745294,177.52,177.43,40.61745294]
[1734695613925,40.61745294,177.54,177.43,40.61745294]
[1734695614113,40.61745294,177.52,177.43,40.61745294]
[1734695614310,40.61745294,177.46,177.37,60.61745294]
[1734695614509,40.61745294,177.42,177.34,7.4691]
[1734695614816,40.61745294,177.5,177.39,40.61745294]
[1734695615013,40.61745294,177.48,177.37,40.61745294]
[1734695615411,40.61745294,177.5,177.39,40.61745294]
[1734695615734,40.61745294,177.54,177.43,40.61745294]
[1734695616107,40.61745294,177.54,177.35,0.84520768]
[1734695616108,40.61745294,177.5,177.39,40.61745294]
[1734695616311,40.61745294,177.54,177.43,40.61745294]
[1734695616843,40.61745294,177.44,177.23,28.2111]
[1734695617044,40.61745294,177.34,177.23,40.61745294]
[1734695617254,40.61745294,177.32,177.21,48.17065294]
[1734695617415,40.61745294,177.28,177.17,40.98858054]
[1734695617614,40.61745294,177.26,177.17,0.3711276]
[1734695617840,40.61745294,177.24,177.17,0.3711276]
[1734695618241,40.61745294,177.18,177.17,0.3711276]
[1734695618623,40.61745294,177.2,177.17,0.3711276]
[1734695618819,12.6494,177.33,177.17,0.3711276]
[1734695618820,40.61745294,177.26,177.17,0.3711276]
[1734695619221,69.19178224,177.4,177.17,0.3711276]
[1734695619222,40.61745294,177.24,177.17,0.3711276]
[1734695619433,40.61745294,177.31,177.2,40.61745294]
[1734695619635,40.61745294,177.33,177.22,40.61745294]
[1734695619842,40.61745294,177.31,177.19,40.61745294]
[1734695620044,40.61745294,177.27,177.17,40.98858054]
[1734695620215,40.61745294,177.27,177.17,0.3711276]
[1734695620419,40.61745294,177.31,177.21,20.0]
[1734695620734,40.61745294,177.35,177.27,20.0]
[1734695620937,40.61745294,177.39,177.28,40.61745294]
[1734695621125,40.61745294,177.35,177.24,40.61745294]
[1734695621721,40.61745294,177.33,177.22,40.61745294]
[1734695621923,40.61745294,177.33,177.22,60.61745294]
[1734695622325,40.61745294,177.41,177.31,40.61745294]
[1734695622546,40.61745294,177.45,177.33,40.61745294]
[1734695622732,40.61745294,177.45,177.02,28.90408537]
[1734695622733,40.61745294,177.37,177.27,40.61745294]
[1734695622935,40.61745294,177.35,177.25,40.61745294]
[1734695623239,40.61745294,177.39,177.29,40.61745294]
[1734695623549,40.61745294,177.39,177.27,40.61745294]
[1734695623752,40.61745294,177.35,177.25,40.61745294]
[1734695623920,40.61745294,177.31,177.21,40.61745294]
[1734695624329,40.61745294,177.35,177.25,40.61745294]
[1734695624528,40.61745294,177.37,177.25,40.61745294]
[1734695624749,40.61745294,177.37,177.27,40.61745294]
[1734695625049,40.61745294,177.39,177.29,40.61745294]
[1734695625251,40.61745294,177.37,177.27,40.61745294]
[1734695625637,40.61745294,177.41,177.32,20.0]
[1734695626353,28.1626,177.54,177.29,40.61745294]
[1734695626354,40.61745294,177.39,177.29,40.61745294]
[1734695626525,40.61745294,177.37,177.27,40.61745294]
[1734695626729,40.61745294,177.29,177.17,40.98858054]
[1734695627031,40.61745294,177.31,177.19,47.38195294]
[1734695627349,40.61745294,177.33,177.23,40.61745294]
[1734695627531,40.61745294,177.37,177.27,40.61745294]
[1734695627737,40.61745294,177.37,177.25,40.61745294]
[1734695628050,40.61745294,177.37,177.27,40.61745294]
[1734695628240,40.61745294,177.39,177.29,40.61745294]
[1734695628441,40.61745294,177.41,177.32,20.0]
[1734695628649,40.61745294,177.39,177.29,40.61745294]
[1734695628949,44.0847,177.5,177.21,34.77607023]
[1734695629154,44.77131827,177.4,177.31,44.77131827]
[1734695629468,30.0,177.59,177.35,44.77131827]
[1734695629628,44.77131827,177.58,177.49,20.0]
[1734695629828,44.77131827,177.6,177.5,44.77131827]
[1734695630330,44.77131827,177.7,177.58,44.77131827]
[1734695630529,44.77131827,177.7,177.6,44.77131827]
[1734695630927,44.77131827,177.74,177.65,20.0]
[1734695631133,44.77131827,177.76,177.66,44.77131827]
[1734695631478,44.77131827,177.76,177.64,44.77131827]
[1734695631678,14.94518058,177.93,177.71,20.0]
[1734695631960,0.8617133,177.96,177.94,20.0]
[1734695632262,44.77131827,178.12,177.95,44.77131827]
[1734695632466,44.77131827,178.08,177.95,44.77131827]
[1734695632760,0.17995405,177.99,177.93,44.77131827]
[1734695632958,0.17995405,177.99,177.93,40.30159741]
[1734695633162,0.17995405,177.99,177.97,40.30159741]
[1734695633561,40.30159741,178.11,177.97,40.30159741]
[1734695633742,40.30159741,178.07,177.95,40.30159741]
[1734695633937,40.30159741,178.05,177.93,40.30159741]
[1734695634346,0.17995405,177.99,177.97,40.30159741]
[1734695634542,0.17995405,177.99,177.98,40.30159741]
[1734695635264,0.17995405,177.99,177.94,40.30159741]
[1734695635447,0.17995405,177.99,177.96,40.30159741]
[1734695635648,541.321174,178.0,177.98,60.30159741]
[1734695636156,541.321174,178.0,177.98,40.30159741]
[1734695636773,541.321174,178.0,177.99,0.12549]
[1734695637082,531.380774,178.0,177.99,14.17119]
[1734695637272,513.371774,178.0,177.99,14.17119]
[1734695637563,319.0992256,178.0,177.99,54.47278741]
[1734695637765,283.56094427,178.0,177.99,14.17119]
[1734695638465,283.56094427,178.0,177.98,40.30159741]
[1734695639167,283.56094427,178.0,177.99,40.42708741]
[1734695639346,211.27018096,178.0,177.99,40.42708741]
[1734695639765,194.53311519,178.0,177.99,74.35708741]
[1734695639970,173.17311519,178.0,177.99,40.42708741]
[1734695640169,166.05311519,178.0,177.98,20.84229684]
[1734695640373,63.74346679,178.0,177.99,80.60319482]
[1734695640552,63.74346679,178.0,177.99,40.30159741]
[1734695640754,44.19237121,178.0,177.99,40.30159741]
[1734695641171,44.19237121,178.0,177.98,23.33090899]
[1734695641386,44.19237121,178.0,177.99,40.30159741]
[1734695642161,44.19237121,178.0,177.99,40.42708741]
[1734695642349,24.13373888,178.0,177.99,80.72868482]
[1734695642767,40.30159741,178.22,178.0,0.12549]